Cogmind - Beta 14 @@@ ROGUE MODE // 2024.11.30 @ 00:12:11 Player: UnderDoug Result: Destroyed by L-41 Fighter with Axe Performance ------------- Evolutions (3) 1500 Regions Visited (5) 1000 Robots Destroyed (55) 275 Value Destroyed (1451) 1451 Prototype IDs (5) 100 Alien Tech Used (0) 0 Bonus (500) 500 TOTAL SCORE: 4826 Bonus ------- Entered DSFs 500 Cogmind --------- Core Integrity 0/700 Matter 285/300 Energy 240/240 System Corruption 0% Temperature Cool (0) Movement Walking (190) Ox1 Location -7/DSF Parts ------- > --- POWER (3) -------- Nuclear Core > --- PROPULSION (5) --- Aluminum Leg Improved Flight Unit > --- UTILITY (3) ------ Small Storage Unit > --- WEAPON (2) ------- Katana Katana > --- INVENTORY (8) ---- (None) Peak State ------------ > --- POWER ------------ Improved Ion Engine Improved Deuterium Engine > --- PROPULSION ------- Armored Treads Improved Flight Unit Improved Flight Unit Improved Flight Unit Improved Flight Unit > --- UTILITY ---------- Active Sensor Suite > --- WEAPON ----------- EM Pulse Cannon Katana > --- INVENTORY -------- Light Cannon Katana [Rating: 54] Favorites ----------- Power Improved Ion Engine Engine Improved Ion Engine Power Core Light Nuclear Core Propulsion Armored Treads Treads Armored Treads Leg Aluminum Leg Hover Unit Hover Unit Flight Unit Improved Flight Unit Utility Small Storage Unit Device High-powered Tractor Beam Storage Small Storage Unit Processor Terrain Scan Processor Hackware Authchip [Storage] Protection Light Armor Plating Weapon Katana Energy Gun Backup Laser I Energy Cannon EM Pulse Cannon Ballistic Gun Light Assault Rifle Ballistic Cannon Light Cannon Launcher Grenade Launcher Slashing Weapon Katana Build | -11 -10 -9 -8 -7 -7 ------- Run | Yrd Mat Mat Mat Fac DSF Slots Evolved 6 | . . 2 2 2 . Power 2 | . . 1 . 1 . Propulsion 3 | . . 1 1 1 . Utility 1 | . . . 1 . . Weapon . | . . . . . . Parts Attached 77 | 6 4 37 9 2 19 Power 14 | 1 1 4 2 1 5 Engine 11 | 1 1 4 2 1 2 Core 3 | . . . . . 3 Reactor . | . . . . . . Propulsion 32 | 2 1 17 4 1 7 Treads 14 | 2 1 9 . . 2 Leg 2 | . . . . . 2 Wheel . | . . . . . . Hover 2 | . . 2 . . . Flight 14 | . . 6 4 1 3 Utility 17 | 1 1 8 3 . 4 Device 4 | . . 1 1 . 2 Storage 4 | 1 . 1 1 . 1 Processor 1 | . . 1 . . . Hackware 1 | . . . . . 1 Protection 7 | . 1 5 1 . . Artifact . | . . . . . . Weapon 14 | 2 1 8 . . 3 Energy Gun 4 | 1 . 3 . . . Energy Cannon 1 | . . . . . 1 Ballistic Gun 4 | 1 1 2 . . . Ballistic Cannon 1 | . . . . . 1 Launcher 1 | . . 1 . . . Special Weapon . | . . . . . . Impact Weapon . | . . . . . . Slashing Weapon 3 | . . 2 . . 1 Piercing Weapon . | . . . . . . Special Melee Weapon . | . . . . . . Unidentified Prototypes 3 | . . 1 1 . 1 Parts Lost 30 | . 2 11 . . 17 Power 8 | . 1 3 . . 4 Propulsion 10 | . . 3 . . 7 Utility 7 | . . 3 . . 4 Weapon 5 | . 1 2 . . 2 Highest Loss Streak 10 | . 1 7 . . 10 To Critical Strikes . | . . . . . . Average Slot Usage (%) 86 | . 96 87 83 80 55 Engine 16 | . 13 19 18 11 8 Treads 20 | . 27 24 . . 6 Hover 1 | . . 2 . . . Flight 6 | . . 2 35 38 15 Device 1 | . . . 8 7 3 Storage 8 | . 14 8 4 7 2 Processor 1 | . . 2 . . . Protection 8 | . 13 8 7 7 . Energy Gun 9 | . 12 11 . . . Ballistic Gun 4 | . 14 . . . . Slashing Weapon 4 | . . 6 9 7 7 Peak Build Rating 54 | 6 8 23 26 31 54 Average Rating 15 | 4 7 15 24 28 32 On Entrance 15 | . 6 8 23 25 29 Naked Turns . | . . . . . . Heaviest Build 44 | 12 13 35 25 25 44 Greatest Support 60 | 40 40 60 20 25 40 Greatest Overweight (x) 4 | . . 4 1 . 1 Average Overweight (x) . | . . . . . . Largest Inventory Capacity 10 | 8 8 10 10 8 8 Average Capacity 7 | 6 8 7 6 8 5 Most Carried 10 | 6 8 10 10 8 8 Average Carried 6 | 3 7 6 5 7 4 Final Capacity 10 | 8 8 10 8 8 8 Final Carried 10 | 6 8 10 6 8 . Class Distribution -------------------- 85% | Mutant 8% | Sprinter 5% | Scavenger-Assassin Dominant Class ---------------- Mutant | -10/Materials Mutant | -9/Materials Sprinter | -8/Materials Sprinter | -7/Factory Scavenger-Assassin | -7/DSF Resources | -11 -10 -9 -8 -7 -7 ----------- Run | Yrd Mat Mat Mat Fac DSF Matter Collected 1093 | 216 128 418 110 . 221 Remotely 110 | . . . 110 . . Salvage Created 1853 | . 383 922 175 . 373 Parts 110 | . 26 54 9 . 21 Haulers Intercepted 1 | . . 1 . . . Recyclers Shooed 2 | . 1 1 . . . Parts Field Recycled . | . . . . . . Retrieved Matter . | . . . . . . Parts Self-Destructed . | . . . . . . Prevented . | . . . . . . Kills | -11 -10 -9 -8 -7 -7 ------- Run | Yrd Mat Mat Mat Fac DSF Combat Hostiles Destroyed 44 | . 11 24 . . 9 Melee 10 | . . 8 . . 2 Guns 22 | . 11 11 . . . Cannons 7 | . . . . . 7 AOE 2 | . . 2 . . . Classes Destroyed 11 | . 4 6 . . 1 Worker 3 | . . 1 2 . . Tunneler 2 | . . 1 1 . . Hauler 1 | . . 1 . . . Recycler 2 | . 1 . 1 . . Mechanic 1 | . . 1 . . . Watcher 2 | . 1 . 1 . . Swarmer 14 | . 6 5 . . 3 Grunt 24 | . 5 14 . . 5 Brawler 2 | . . 2 . . . Sentry 3 | . . 3 . . . Heavy 1 | . . . . . 1 Best Kill Streak 4 | . 4 3 4 . 3 Combat Bots Only 3 | . 3 3 . . 3 Max Kills in Single Turn 1 | . 1 1 1 . 1 Gunslinging . | . . . . . . Exploded 1 | . . 1 . . . Melee 1 | . . 1 . . 1 Uniques/NPCs Destroyed . | . . . . . . Combat | -11 -10 -9 -8 -7 -7 -------- Run | Yrd Mat Mat Mat Fac DSF Hostile Shots Fired 444 | . 70 157 20 . 197 Missed 116 | . 18 27 8 . 63 Damage Taken 5013 | . 552 1844 183 . 2434 Core 1126 | . 65 290 44 . 727 Absorbed by Shields 33 | . . . . . 33 Redirected to Shielding 28 | . 15 13 . . . Regen/Repaired (Parts) 194 | . 113 . 81 . . Core Remaining (%) 73 | 100 74 27 92 . . Volleys Fired 169 | . 49 84 . . 36 Largest 2 | . 2 2 . . 1 Hottest 70 | . 70 60 . . 63 Shots Fired 244 | . 90 118 . . 36 Gun 203 | . 90 113 . . . Cannon 36 | . . . . . 36 Launcher 5 | . . 5 . . . Special . | . . . . . . Kinetic 88 | . 49 15 . . 24 Thermal 139 | . 41 98 . . . Explosive 5 | . . 5 . . . Electromagnetic 12 | . . . . . 12 Robot Hit Streak 21 | . 7 21 . . 11 Robot Miss Streak 6 | . 6 3 . . 2 Penetration Max . | . . . . . . Secondary Targets . | . . . . . . Shots Hit Robots 207 | . 49 105 8 . 45 Core Hits 90 | . 23 44 3 . 20 Critical Kills . | . . . . . . Critical Parts Destroyed . | . . . . . . Critical Strikes 7 | . 3 3 . . 1 Burn 5 | . 3 2 . . . Corrupt 1 | . . . . . 1 Sever 1 | . . 1 . . . Melee Attacks 62 | . . 31 15 . 16 Impact . | . . . . . . Slashing 62 | . . 31 15 . 16 Piercing . | . . . . . . Sneak Attacks 7 | . . 2 5 . . Combat Hostiles . | . . . . . . Follow-up Attacks . | . . . . . . Damage Inflicted 3633 | . 467 1786 443 . 937 Guns 1373 | . 467 906 . . . Cannons 656 | . . . . . 656 Explosions 275 | . . 275 . . . Melee 1316 | . . 592 443 . 281 Ramming 13 | . . 13 . . . Kinetic 688 | . 228 101 . . 359 Thermal 1044 | . 239 805 . . . Explosive 275 | . . 275 . . . Electromagnetic 297 | . . . . . 297 Impact . | . . . . . . Slashing 1316 | . . 592 443 . 281 Piercing . | . . . . . . Highest Corruption 11 | . . 11 . . . Average Corruption 9 | . . 9 . . . Corruption Purged . | . . . . . . Corruption Blocked . | . . . . . . Effects 48 | . . 48 . . . Message Errors 13 | . . 13 . . . Matter Fused 9 | . . 9 . . . Heat Flow Errors 7 | . . 7 . . . Energy Discharges 5 | . . 5 . . . Parts Rejected 1 | . . 1 . . . Data Loss (minor) 5 | . . 5 . . . Data Loss (major) 3 | . . 3 . . . Misfires 3 | . . 3 . . . Alerts 2 | . . 2 . . . Overload Shots . | . . . . . . Overflow Damage 138 | . . 26 112 . . Projectiles . | . . . . . . Explosions 26 | . . 26 . . . Melee 112 | . . . 112 . . Knockbacks 12 | . . 1 . . 11 Impact 1 | . . 1 . . . Kinetic 11 | . . . . . 11 Secondary . | . . . . . . Self-Inflicted Damage 183 | . . 183 . . . Shots 5 | . . 5 . . . Rammed 4 | . . 4 . . . Targets Rammed 4 | . . 4 . . . Kicked . | . . . . . . Crushed . | . . . . . . Highest Temperature 369 | . 301 369 20 14 12 Average Temperature 94 | . 100 105 6 2 6 Received Heat Transfer 1740 | . 180 540 117 . 903 Effects 5 | . 1 4 . . . Shutdowns 2 | . . 2 . . . Energy Bleed 3 | . 1 2 . . . Siege Activations . | . . . . . . Robots Corrupted . | . . . . . . Combat Hostiles . | . . . . . . Parts Fried 1 | . . . . . 1 Impact Corruptions . | . . . . . . Robots Melted 3 | . . 3 . . . Combat Hostiles 3 | . . 3 . . . Parts Melted 7 | . 2 5 . . . Heat Transferred 3737 | . 962 2775 . . . Parts Sabotaged . | . . . . . . Parts Stolen . | . . . . . . Parts Stripped . | . . . . . . Power Chain Reactions . | . . . . . . Alert | -11 -10 -9 -8 -7 -7 ------- Run | Yrd Mat Mat Mat Fac DSF Peak Influence 304 | . 229 303 304 159 264 Initial 144 | . . 69 79 144 114 Average 143 | . 87 166 221 151 173 Maximum Alert Level 1 | . 1 1 1 . 1 Low Security (%) 72 | 100 90 65 35 100 76 Level 1 27 | . 9 34 65 . 23 Level 2 . | . . . . . . Level 3 . | . . . . . . Level 4 . | . . . . . . Level 5 . | . . . . . . High Security . | . . . . . . Max Security . | . . . . . . Sterilizations 1 | . . . . . 1 Squads Dispatched 9 | . 1 6 1 . 1 Investigation 3 | . . 3 . . . Extermination . | . . . . . . Reinforcement 6 | . 1 3 1 . 1 Assault . | . . . . . . Garrison . | . . . . . . Intercept . | . . . . . . Searches Triggered . | . . . . . . Construction Impeded 1 | . . 1 . . . Haulers Reinforced . | . . . . . . Active Scanning Responses . | . . . . . . Cargo Convoy Interrupts . | . . . . . . Stealth | -11 -10 -9 -8 -7 -7 --------- Run | Yrd Mat Mat Mat Fac DSF Distress Signals 6 | . 3 3 . . . Communications Jammed . | . . . . . . Distress Signals . | . . . . . . Times Spotted 85 | . 17 42 7 . 19 Peak Tracking Total 6 | . 5 6 5 . 5 Tactical Retreats 10 | . 2 4 1 . 3 Traps | -11 -10 -9 -8 -7 -7 ------- Run | Yrd Mat Mat Mat Fac DSF Traps Triggered 4 | . 1 2 . . 1 Indirectly . | . . . . . . Trap Hack Attempts . | . . . . . . Triggered . | . . . . . . Disarmed 5 | . . 5 . . . Reprogrammed . | . . . . . . Reused . | . . . . . . Traps Extracted . | . . . . . . Installed . | . . . . . . Triggered 2 | . . . . . 2 Machines | -11 -10 -9 -8 -7 -7 ---------- Run | Yrd Mat Mat Mat Fac DSF Machines Disabled 1 | . . 1 . . . Max in Single Turn 1 | . . 1 . . . Machines Repaired . | . . . . . . Machines Dismantled . | . . . . . . Machines Sabotaged . | . . . . . . Overloaded Fab Kills . | . . . . . . Hacking | -11 -10 -9 -8 -7 -7 --------- Run | Yrd Mat Mat Mat Fac DSF Machines Accessed 12 | . 3 6 2 1 . Terminals 9 | . 2 5 1 1 . Fabricators . | . . . . . . Repair Stations 3 | . 1 1 1 . . Recycling Units . | . . . . . . Scanalyzers . | . . . . . . Garrison Access . | . . . . . . Total Hacks 26 | . 7 14 3 2 . Successful 14 | . 5 5 3 1 . Failed 12 | . 2 9 . 1 . Catastrophic 3 | . . 3 . . . Database Lockouts . | . . . . . . Manual . | . . . . . . Terminals 18 | . 4 11 1 2 . Fabricators . | . . . . . . Repair Stations 8 | . 3 3 2 . . Recycling Units . | . . . . . . Scanalyzers . | . . . . . . Garrison Access . | . . . . . . Terminal Hacks 8 | . 2 4 1 1 . Prototype ID Bank 1 | . . . 1 . . Open DSF 1 | . . . . 1 . Emergency Access Points 1 | . 1 . . . . Alert Level 1 | . . 1 . . . Unreport Threat 1 | . . 1 . . . Locate Traps 1 | . . 1 . . . Disarm Traps 1 | . . 1 . . . Hauler Manifests 1 | . 1 . . . . Fabricator Hacks . | . . . . . . Repair Station Hacks 6 | . 3 1 2 . . Scan Component 2 | . 1 . 1 . . Repair 2 | . 1 . 1 . . Refit 2 | . 1 1 . . . Recycling Unit Hacks . | . . . . . . Scanalyzer . | . . . . . . Garrison Access Hacks . | . . . . . . Unauthorized Hacks . | . . . . . . Terminals . | . . . . . . Fabricators . | . . . . . . Repair Stations . | . . . . . . Recycling Units . | . . . . . . Scanalyzers . | . . . . . . Garrison Access . | . . . . . . Data Cores Recovered . | . . . . . . Used . | . . . . . . Hacking Detections 8 | . 1 5 1 1 . Full Trace Events 3 | . . 3 . . . Feedback Events 1 | . . 1 . . . Corruption 1 | . . 1 . . . Feedback Blocked . | . . . . . . Robot Schematics Acquired . | . . . . . . Robots Built . | . . . . . . Authchips . | . . . . . . Time . | . . . . . . Total Robot Build Rating . | . . . . . . Part Schematics Acquired . | . . . . . . Parts Built . | . . . . . . Authchips . | . . . . . . Time . | . . . . . . Total Part Build Rating . | . . . . . . Parts Repaired 2 | . 1 . 1 . . Time 52 | . 26 . 26 . . Parts Recycled . | . . . . . . Recycled Matter . | . . . . . . Retrieved Matter . | . . . . . . Retrieved Components . | . . . . . . Parts Scanalyzed . | . . . . . . Part Schematics Acquired . | . . . . . . Parts Damaged . | . . . . . . Bothacking | -11 -10 -9 -8 -7 -7 ------------ Run | Yrd Mat Mat Mat Fac DSF Used RIF Installer . | . . . . . . Robots Hacked . | . . . . . . Non-combat . | . . . . . . Combat . | . . . . . . Robot Hacks Applied . | . . . . . . Relay Couplers Released . | . . . . . . Fabnet Peak Effective % . | . . . . . . Robots Rewired . | . . . . . . Allies Hacked . | . . . . . . Hacks Repelled . | . . . . . . Allies | -11 -10 -9 -8 -7 -7 -------- Run | Yrd Mat Mat Mat Fac DSF Total Allies . | . . . . . . Largest Group . | . . . . . . Highest-Rated Group . | . . . . . . Highest-Rated Ally . | . . . . . . Total Orders . | . . . . . . Ally Attacks . | . . . . . . Total Damage . | . . . . . . Kills . | . . . . . . Allies Corrupted . | . . . . . . Allies Melted . | . . . . . . Intel | -11 -10 -9 -8 -7 -7 ------- Run | Yrd Mat Mat Mat Fac DSF Robot Analysis Total . | . . . . . . Derelict Logs Recovered . | . . . . . . Drone Launches . | . . . . . . Drone Recoveries . | . . . . . . Exploration | -11 -10 -9 -8 -7 -7 ------------- Run | Yrd Mat Mat Mat Fac DSF Turns Passed 2823 | 118 750 1389 240 37 289 Spaces Moved 1459 | 62 345 631 230 106 85 Core 14 | 4 . 10 . . . Treads 829 | 58 345 409 . . 17 Legs 16 | . . . . . 16 Wheels . | . . . . . . Hover 137 | . . 137 . . . Flight 463 | . . 75 230 106 52 Fastest Speed 28 | 50 160 34 31 28 28 Average Speed 118 | 152 160 132 57 28 102 Slowest Speed 400 | 160 160 400 101 28 250 Overloaded Moves . | . . . . . . Propulsion Burnouts . | . . . . . . Robots Hopped 2 | . . 2 . . . Cave-ins Triggered . | . . . . . . Exploration Rate (%) 34 | 6 59 47 21 3 70 Regions Visited 5 Branch Regions . Pre-discovered Areas . | . . . . . . Known Exits Taken 1 | . . . . 1 . Unknown Exits Taken 4 | 1 1 1 1 . . Scrap Searched . | . . . . . . Spaces Dug . | . . . . . . Terrain Destroyed 8 | . . 8 . . . Melee . | . . . . . . Projectile . | . . . . . . AOE 8 | . . 8 . . . Terrain Rammed . | . . . . . . Walls Destroyed . | . . . . . . Machines Disabled . | . . . . . . Actions | -11 -10 -9 -8 -7 -7 --------- Run | Yrd Mat Mat Mat Fac DSF Total 2229 | 82 465 1025 316 113 228 Wait 351 | 9 51 191 53 . 47 Move 1450 | 61 344 626 229 105 85 Hop 2 | . . 2 . . . Pick Up 49 | 6 10 23 2 4 4 Fast Attach 31 | 6 2 13 3 . 7 Attach 32 | . 2 16 1 1 12 Detach 12 | . . 8 1 . 3 Swap 14 | . . 8 5 1 . Drop 41 | . 7 19 7 2 6 Fire 169 | . 49 84 . . 36 Melee 62 | . . 31 15 . 16 Ram 3 | . . 3 . . . Kick . | . . . . . . Crush 1 | . . 1 . . . Escape Stasis 12 | . . . . . 12 Rewire . | . . . . . . Trap . | . . . . . . Miscellaneous . | . . . . . . Route ------- -11/Scrapyard -10/Materials (discovered 3 exits: *Mat x2 / [*Min]) -9/Materials (discovered 2 exits: *Mat / [*Min]) -8/Materials -7/Factory -7/DSF (discovered 1 exit: [*Fac]) History --------- Turn | Location | Event 18 | -11/Scrapyard | Discovered new exit (range 15) 119 | -11/Scrapyard | Entered Materials 304 | -10/Materials | Build established: Mutant 416 | -10/Materials | Discovered new exit (range 12) 572 | -10/Materials | Discovered new exit (range 16) 640 | -10/Materials | Repaired Lgt. Treads 743 | -10/Materials | Discovered new exit (range 15) 869 | -10/Materials | Entered another Materials area 869 | -9/Materials | Evolved 2 slots: Power x1, Propulsion x1 994 | -9/Materials | Lost 7 parts (2p2n1u2w) 1431 | -9/Materials | Core integrity fell below 50% 1431 | -9/Materials | System corruption reached 10% 1502 | -9/Materials | Discovered new exit (range 13) 2096 | -9/Materials | Discovered new exit (range 16) 2258 | -9/Materials | Entered another Materials area 2258 | -8/Materials | Evolved 2 slots: Propulsion x1, Utility x1 2392 | -8/Materials | Repaired Lgt. Armor Plating 2486 | -8/Materials | Discovered new exit (range 11) 2498 | -8/Materials | Entered Factory 2498 | -7/Factory | Evolved 2 slots: Power x1, Propulsion x1 2535 | -7/Factory | Identified exit to DSF 2535 | -7/Factory | Entered DSF 2553 | -7/DSF | Additional patrols routed to DSF 2593 | -7/DSF | Found Prototype Device 2595 | -7/DSF | Lost 4 parts (1n3u) 2613 | -7/DSF | Identified Active Sensor Suite 2690 | -7/DSF | Lost 3 parts (2p1w) 2715 | -7/DSF | Core integrity fell below 50% 2771 | -7/DSF | Core integrity fell below 20% 2784 | -7/DSF | Discovered new exit (range 16) 2802 | -7/DSF | Sterilization system engaged 2822 | -7/DSF | Ambient heat levels rising (+10) 2824 | -7/DSF | Destroyed by L-41 Fighter with Axe Last Messages --------------- Acquired Lgt. Nuclear Core. Acquired 4 matter. Acquired 3 matter. ALERT: Persistent threat exposed, engaging DSF rapid sterilization system. Acquired 6 matter. Stasis field depleted. C-30 ARC bursts open, deploying its payload. L-41 Fighter unfolds itself. G-47 Trooper unfolds itself. Imp. Flight Unit destroyed. Critical hit (Burn: +37). Acquired 2 matter. Acquired Nuclear Core. Acquired Sml. Storage Unit. Critical hit (Burn: +37). Rnf. Deuterium Engine destroyed. Lgt. Nuclear Core destroyed. Aluminum Leg destroyed. ALERT: Ambient heat levels +10. Map ----- +----------------------------------------------------+ | ??????#"""""#?###???#???????????????????????????? | | ??????#"""""##!!#!!!#!!==???????????????????????? | | ???#"##"" ?????????????????????? | | ???#""""" ?????????????????????? | | ????###"" ## # ### #?????????????????????? | | ??????### ##???#?????# ##????????????????????? | | ???????## ###???????? ????????????????????? | | ???????#! #???????? ?????????????????????? | | ???????#! #???????? ?????????????????????? | | ???????## ###?????#### ###???????????????????? | | ???????# #??????"** !!#???????????????????? | | ???????# #??????#** !!#???????????????????? | | ???????# #???????** ^ !!????????????????????? | | ??????### ###########;^ #???###???????????????? | | ??????# ## "!!!##; ##? #??!#???????????? | | ??????# ## # !!"#a % a##" #!!!## ????????? | | ??????# % % %!=[=%" !???????? | | ?????#" %]!%%* !???????? | | ??????# ^^ !^!* !???????? | | ??????#!! ## # ##a =^^##!!!#]]]#???????????? | | ??????#!! ## # ###g%s##???!#???????????????? | | ??????#################%g!###???????????????????? | | ????????????????????#!!%! [[#???????????????????? | | ????????????????????#!!% [[#???????????????????? | | ????????????????????#!!%* [[#???????????????????? | | ????????????????????### @%###???????????????????? | | ????????????????????#* %%l!!#???????????????????? | | ????????????????????#**%! !!#???????????????????? | | ????????????????????#**% !!#???????????????????? | | ????????????????????### ###?? #???????????????? | | ????????????????????### ### #**## "???????? | | ????????????????????# % % "???????? | | ????????????????????# <"???????? | | ????????????????????# # #**##""?????????? | | ????????????????????# #?###???????????????? | | ????????????????????#########???????????????????? | | ????????????????????????????????????????????????? | | ????????????????????????????????????????????????? | | ????????????????????????????????????????????????? | | ????????????????????????????????????????????????? | | ????????????????????????????????????????????????? | | ????????????????????????????????????????????????? | | ????????????????????????????????????????????????? | | | | | | | | | | | | | | | +----------------------------------------------------+ Best States ------------- Heat Dissipation 34 Energy Generation 34 Energy Capacity 490 Matter Stores 300 Matter Capacity 300 Sight Range 16 Robot Scan Range 20 Terrain Scan Density 85 Armor Coverage 300 Core Shielding 20 Evasion (%) 64 Recoil Reduction 3 Authchip Count 1 Item Schematics ----------------- None Robot Schematics ------------------ None Fabricated ------------ Nothing Alien Tech Used ----------------- None Achievements -------------- I Spy It's Just You Challenges ------------ None Game ------ Seed RainbowAntimatterScanner Manual? 0 Play Time 00:37:15 Cumulative 12.5 hours Start 2024.11.29 @ 23:35:12 End 2024.11.30 @ 00:12:11 Sessions 1 Manual Loads 0 Difficulty Rogue Special Mode None Game No. 15 Rogue 15 Adventurer 0 Explorer 0 Win Type - Total 0 Types 0/0/0/0/0/0/0/0/0 Lore% 8 Gallery% 16 Achievement% 17 Wizard Run 0 Options --------- Layout 1 ASCII 0 Keyboard 0 Movement Mouse Keybinds 0 Fullscreen 2 Font 24/Tamsyn Map View 50x35 Zoom Use 0% Tactical HUD 0 Map Filters NONE Filters NONE Steam 0 RUN: d1497f46-353f-400f-bb6b-ffda3c4a7df2